bitfinex-derivatives/quotes_SOLF0:USTF0_20250328
["timestamp","ask_amount","ask_price","bid_price","bid_amount"]
[1743138821139,0.04773986,134.0,133.97,0.04866561]
[1743138821140,7.51293986,134.0,133.97,0.04866561]
[1743138821437,0.04773986,134.0,133.97,0.04866561]
[1743138823741,7.4656,133.99,133.97,0.04866561]
[1743138824742,7.4658,133.98,133.97,0.04866561]
[1743138825139,0.04773986,134.0,133.97,0.04866561]
[1743138825836,7.4658,133.98,133.97,0.04866561]
[1743138826939,7.4677,133.95,133.91,7.4694]
[1743138827338,7.4677,133.95,133.9,11.6405]
[1743138827532,7.4677,133.95,133.9,4.1704]
[1743138828246,0.0520262,133.94,133.91,0.05024145]
[1743138828450,0.0520262,133.94,133.91,7.51964145]
[1743138829545,0.0520262,133.94,133.91,0.05024145]
[1743138830841,7.469,133.93,133.91,0.05024145]
[1743138831242,38.1120262,133.94,133.91,0.05024145]
[1743138831449,45.5804262,133.94,133.91,0.05024145]
[1743138831748,38.1120262,133.94,133.91,0.05024145]
[1743138832352,7.4692,133.92,133.91,0.05024145]
[1743138832649,38.1120262,133.94,133.83,114.18134471]
[1743138832650,18.78699864,133.93,133.83,114.18134471]
[1743138832846,7.4712,133.89,133.83,121.65524471]
[1743138833049,38.06,133.89,133.83,121.65524471]
[1743138833251,38.06,133.89,133.83,114.18134471]
[1743138833553,38.06,133.89,133.85,7.4728]
[1743138833851,0.04961082,133.87,133.85,7.52044494]
[1743138834351,0.04961082,133.87,133.85,0.04764494]
[1743138835052,0.04961082,133.87,133.85,7.52064494]
[1743138835443,0.04961082,133.87,133.85,0.04764494]
[1743138837063,0.04961082,133.87,133.85,7.52044494]
[1743138838146,0.04961082,133.87,133.86,7.4725]
[1743138838846,0.04961082,133.87,133.85,0.04764494]
[1743138840247,7.52161082,133.87,133.85,0.04764494]
[1743138840447,0.04961082,133.87,133.85,0.04764494]
[1743138840854,7.52181082,133.87,133.85,0.04764494]
[1743138841856,0.04961082,133.87,133.85,0.04764494]
[1743138842253,7.4725,133.86,133.85,0.04764494]
[1743138842657,4.20481082,133.87,133.85,0.04764494]
[1743138842856,11.67711082,133.87,133.85,0.04764494]
[1743138843258,4.20481082,133.87,133.85,0.04764494]
[1743138843458,7.4725,133.86,133.85,0.04764494]
[1743138844162,0.04961082,133.87,133.85,0.04764494]
[1743138853871,7.4725,133.86,133.85,0.04764494]
[1743138855769,0.04961082,133.87,133.85,0.04764494]
[1743138858274,7.52201082,133.87,133.85,0.04764494]
[1743138858877,0.04961082,133.87,133.85,0.04764494]
[1743138859586,0.04961082,133.87,133.85,7.52044494]
[1743138859778,0.04961082,133.87,133.85,0.04764494]
[1743138860970,7.47,133.91,133.87,7.4719]
[1743138861879,45.3894,133.92,133.88,7.4714]
[1743138862269,0.05216993,133.91,133.89,0.04881475]
[1743138865775,0.05216993,133.91,133.89,7.51961475]
[1743138866167,0.05216993,133.91,133.89,0.04881475]
[1743138866777,0.05216993,133.91,133.9,7.4703]
[1743138866972,268.94,134.01,133.89,14.78161339]
[1743138866973,14.73279864,133.99,133.89,14.78161339]
[1743138867173,37.9,133.97,133.89,14.73279864]
[1743138867369,37.9,133.97,133.91,7.4695]
[1743138867370,45.3667,133.97,133.91,7.4695]
[1743138867776,45.3667,133.97,133.89,14.73279864]
[1743138868172,0.05548151,133.94,133.92,0.05024817]
[1743138869378,7.52358151,133.94,133.92,0.05024817]
[1743138869783,0.05548151,133.94,133.92,0.05024817]
[1743138872178,7.52368151,133.94,133.92,0.05024817]
[1743138873186,0.05548151,133.94,133.92,0.05024817]
[1743138874791,0.05548151,133.94,133.92,7.51934817]
[1743138876088,0.05548151,133.94,133.93,16.91155849]
[1743138876878,37.82,133.99,133.95,7.4672]
[1743138877084,11.3687,134.0,133.92,14.74898504]
[1743138877387,41.7239,134.0,133.92,14.74898504]
[1743138877586,41.7239,134.0,133.96,7.4668]
[1743138877889,41.7239,134.0,133.92,14.74898504]
[1743138878092,0.05064998,133.99,133.97,0.0483056]
[1743138878488,7.51624998,133.99,133.97,0.0483056]
[1743138880085,7.4658,133.98,133.97,0.0483056]
[1743138880387,0.05064998,133.99,133.97,0.0483056]
[1743138880788,7.51644998,133.99,133.97,0.0483056]
[1743138881090,0.05064998,133.99,133.97,0.0483056]
[1743138881791,7.4658,133.98,133.97,0.0483056]
[1743138884296,22.20898504,133.98,133.86,14.74898504]
[1743138884495,14.74898504,133.94,133.86,14.74898504]
[1743138884694,7.4695,133.92,133.87,7.4718]
[1743138884897,7.4695,133.92,133.86,14.74898504]
[1743138884898,52.52898504,133.94,133.86,14.74898504]
[1743138885190,7.469,133.93,133.88,7.4709]
[1743138885390,0.04952228,133.91,133.89,0.05259089]
[1743138886889,7.4703,133.9,133.89,0.05259089]
[1743138888000,59.97928504,133.9,133.89,0.05259089]
[1743138890799,45.2303,133.9,133.89,0.05259089]
[1743138892097,7.4703,133.9,133.89,0.05259089]
[1743138895108,37.78952228,133.91,133.89,0.05259089]
[1743138895109,45.25952228,133.91,133.89,0.05259089]
[1743138895511,7.4703,133.9,133.89,0.05259089]
[1743138899517,54.69030817,133.91,133.89,0.05259089]
[1743138900417,47.22050817,133.91,133.89,0.05259089]
[1743138901016,7.4703,133.9,133.89,0.05259089]
[1743138901827,16.92128589,133.9,133.89,0.05259089]
[1743138902825,9.45098589,133.9,133.83,9.45098589]
[1743138903020,9.45098589,133.88,133.83,9.45098589]
[1743138903827,9.45098589,133.88,133.83,16.92488589]
[1743138904019,0.04734216,133.87,133.84,0.05508353]
[1743138904821,0.04734216,133.87,133.85,9.45098589]
[1743138905018,0.04734216,133.87,133.86,7.4725]
[1743138905625,16.92148589,133.9,133.86,7.4725]
[1743138905823,9.45098589,133.9,133.86,7.4725]
[1743138906024,3.9002,133.95,133.87,9.45098589]
[1743138906223,9.45098589,133.93,133.87,9.45098589]
[1743138906725,0.04848905,133.91,133.89,0.05545774]
[1743138908327,37.66,133.9,133.89,0.05545774]
[1743138909414,52.42473152,133.9,133.82,52.42473152]
[1743138909619,52.42473152,133.9,133.8,18.92093152]
[1743138910519,14.76473152,133.86,133.78,14.76473152]
[1743138910720,37.64,133.85,133.84,0.05146965]
[1743138911025,37.64,133.85,133.81,0.05264847]
[1743138911218,7.474,133.84,133.81,0.05264847]
[1743138911623,37.64,133.85,133.81,0.05264847]
[1743138911818,7.4738,133.84,133.81,0.05264847]
[1743138912722,37.64,133.85,133.81,0.05264847]
[1743138912723,45.1133,133.85,133.81,0.05264847]
[1743138912923,37.64,133.85,133.81,0.05264847]
[1743138913229,7.4741,133.84,133.81,0.05264847]
[1743138914231,37.64,133.85,133.81,0.05264847]
[1743138914927,7.4748,133.82,133.81,0.05264847]
[1743138918133,22.23953152,133.82,133.81,0.05264847]
[1743138918532,22.24473152,133.82,133.71,7.9417]
[1743138918733,14.76473152,133.79,133.71,7.9417]
[1743138919129,7.4779,133.77,133.71,7.9417]
[1743138919336,7.4779,133.77,133.71,15.4221]
[1743138919634,45.0979,133.77,133.71,7.9417]
[1743138919830,0.05464487,133.75,133.73,0.05152798]
[1743138920437,0.05464487,133.75,133.74,7.4792]
[1743138921036,0.05464487,133.75,133.73,0.05152798]
[1743138922636,7.53354487,133.75,133.73,0.05152798]
[1743138923038,0.05464487,133.75,133.73,0.05152798]
[1743138923639,14.76473152,133.83,133.74,14.76473152]
[1743138923940,364.0,133.87,133.74,18.62423152]
[1743138923941,37.6,133.81,133.74,18.62423152]
[1743138924136,37.6,133.83,133.74,18.62423152]
[1743138924336,7.4757,133.81,133.74,18.62423152]
[1743138924836,0.05068032,133.79,133.76,0.0547435]
[1743138925339,52.41541184,133.79,133.76,0.0547435]
[1743138926636,7.4776,133.77,133.76,0.0547435]
[1743138927234,22.24233152,133.77,133.76,0.0547435]
[1743138928545,7.4776,133.77,133.76,0.0547435]
[1743138928743,7.4772,133.78,133.76,0.0547435]
[1743138929241,7.4776,133.77,133.76,0.0547435]
[1743138929840,37.65068032,133.79,133.76,0.0547435]
[1743138930041,0.05068032,133.79,133.76,0.0547435]
[1743138930345,7.474,133.84,133.76,14.81947502]
[1743138930544,52.34473152,133.86,133.77,4.2581]
[1743138930747,52.34473152,133.86,133.79,7.4761]
[1743138930945,9.45808127,133.86,133.8,9.45808127]
[1743138931144,9.45808127,133.86,133.82,9.45808127]
[1743138931447,0.04915558,133.84,133.82,0.05232841]
[1743138932146,9.50723685,133.84,133.82,0.05232841]
[1743138932645,7.4742,133.83,133.82,0.05232841]
[1743138932842,0.04915558,133.84,133.82,0.05232841]
[1743138937151,0.04915558,133.84,133.82,7.52682841]
[1743138937656,0.04915558,133.84,133.82,0.05232841]
[1743138938245,7.52315558,133.84,133.82,0.05232841]
[1743138938947,0.04915558,133.84,133.82,0.05232841]
[1743138940554,7.52305558,133.84,133.82,0.05232841]
[1743138941451,0.04915558,133.84,133.82,0.05232841]
[1743138943756,37.5,133.88,133.84,7.4733]
[1743138944257,44.951,133.89,133.84,7.4733]
[1743138944457,37.48,133.89,133.8,14.78389253]
[1743138944756,37.48,133.89,133.82,14.78389253]
[1743138944958,37.48,133.9,133.86,7.4724]
[1743138945159,0.05437724,133.87,133.83,3.8842]
[1743138945661,0.05437724,133.87,133.84,0.05376527]
[1743138946062,0.05437724,133.87,133.86,7.4725]
[1743138946668,0.05437724,133.87,133.85,7.4728]
[1743138947560,0.05437724,133.87,133.84,0.05376527]
[1743138948266,633.0,134.0,133.85,14.78389253]
[1743138948565,633.0,134.0,133.9,7.47]
[1743138948566,14.78389253,133.96,133.9,7.47]
[1743138948766,37.46,133.95,133.9,7.47]
[1743138949162,37.46,133.95,133.91,7.4697]
[1743138949468,37.46,133.95,133.92,0.05477843]
[1743138950168,18.72689253,133.94,133.81,14.78389253]
[1743138950369,14.78389253,133.91,133.81,18.72839253]
[1743138950562,37.44,133.9,133.81,18.72839253]
[1743138951165,0.0515169,133.87,133.84,0.05697842]
[1743138953073,14.83540943,133.87,133.84,0.05697842]
[1743138953271,37.42,133.86,133.84,0.05697842]
[1743138957464,37.42,133.86,133.84,7.53047842]
[1743138958169,37.42,133.86,133.84,0.05697842]
[1743138959476,14.78389253,133.85,133.7,356.0]
[1743138959668,14.78389253,133.83,133.75,4.1685]
[1743138959872,37.38,133.82,133.75,4.1685]
[1743138960179,14.78389253,133.81,133.75,4.1685]
[1743138960371,14.78389253,133.81,133.71,52.18389253]
[1743138960566,14.78389253,133.81,133.75,0.05458236]
[1743138960766,0.05092749,133.77,133.75,0.05458236]
[1743138961772,14.83482002,133.77,133.75,0.05458236]
[1743138961977,14.83482002,133.77,133.7,31.14036674]
[1743138962279,7.4796,133.74,133.7,31.14036674]
[1743138962579,7.4801,133.73,133.67,19.03469253]
[1743138962779,37.38,133.74,133.67,4.2508]
[1743138963084,14.836131,133.71,133.69,0.04906745]
[1743138963273,37.38,133.7,133.69,0.04906745]
[1743138963675,44.8615,133.7,133.69,0.04906745]
[1743138964273,37.38,133.7,133.63,31.14036674]
[1743138965274,23.70656575,133.69,133.63,31.14036674]
[1743138965479,0.05093912,133.68,133.65,0.04995625]
[1743138965677,7.4837,133.66,133.65,0.04995625]
[1743138965874,44.8637,133.66,133.65,0.04995625]
[1743138968180,7.4861,133.62,133.53,23.70656575]
[1743138968378,44.8461,133.62,133.53,23.70656575]
[1743138968578,37.36,133.62,133.53,23.70656575]
[1743138968779,37.36,133.62,133.54,7.9772]
[1743138969282,0.05352213,133.59,133.57,0.05634504]
[1743138969887,37.36,133.62,133.57,0.05634504]
[1743138970081,4.1475,133.69,133.57,0.05634504]
[1743138970273,37.36,133.68,133.57,0.05634504]
[1743138970475,37.36,133.68,133.56,61.06656575]
[1743138970476,44.8427,133.68,133.56,61.06656575]
[1743138970674,37.36,133.68,133.58,7.4878]
[1743138970887,7.4836,133.67,133.56,61.06656575]
[1743138971184,0.04950402,133.64,133.62,0.04901701]
[1743138972604,7.4854,133.63,133.62,0.04901701]
[1743138973111,37.40950402,133.64,133.62,0.04901701]
[1743138974810,0.04950402,133.64,133.62,0.04901701]
[1743138978787,7.53460402,133.64,133.62,0.04901701]
[1743138978987,0.04950402,133.64,133.62,0.04901701]
[1743138979189,7.4854,133.63,133.62,0.04901701]
[1743138979780,0.04950402,133.64,133.62,0.04901701]
[1743138980791,7.53440402,133.64,133.62,0.04901701]
[1743138981090,0.04950402,133.64,133.62,0.04901701]
[1743138986787,0.04950402,133.64,133.62,7.53441701]
[1743138986992,52.14215153,133.7,133.62,14.87116854]
[1743138987390,52.14215153,133.7,133.62,0.04901701]
[1743138987794,14.82215153,133.68,133.62,7.53481701]
[1743138987996,14.82215153,133.68,133.62,0.04901701]
[1743138988295,0.05282011,133.66,133.62,0.04901701]
[1743138988892,0.05282011,133.66,133.63,7.4854]
[1743138989301,0.05282011,133.66,133.62,14.87116854]
[1743138989797,0.05282011,133.66,133.62,0.04901701]
[1743138990801,0.05282011,133.66,133.65,7.4843]
[1743138991496,0.05282011,133.66,133.62,14.87116854]
[1743138992396,0.05282011,133.66,133.63,4.1172]
[1743138992590,0.05282011,133.66,133.64,7.4844]
[1743138992797,0.05282011,133.66,133.63,4.1172]
[1743138994302,0.05282011,133.66,133.64,7.4844]
[1743138994904,0.05282011,133.66,133.63,11.602]
[1743138995099,0.05282011,133.66,133.63,4.1172]
[1743138995406,0.05282011,133.66,133.64,7.4847]
[1743138996300,0.05282011,133.66,133.63,4.1172]
[1743138996705,0.05282011,133.66,133.62,0.04901701]
[1743138997001,7.53672011,133.66,133.62,0.04901701]
[1743138997201,0.05282011,133.66,133.62,0.04901701]
[1743138997597,37.31282011,133.66,133.62,0.04901701]
[1743138998398,7.4844,133.65,133.62,0.04901701]
[1743138999003,37.31282011,133.66,133.62,0.04901701]
[1743138999004,44.79662011,133.66,133.62,0.04901701]
[1743138999202,37.31282011,133.66,133.62,0.04901701]
[1743139000802,44.79692011,133.66,133.62,0.04901701]
[1743139001004,0.05282011,133.66,133.62,0.04901701]
[1743139003198,7.4846,133.65,133.62,0.04901701]
[1743139003402,0.05282011,133.66,133.62,0.04901701]
[1743139004512,7.53692011,133.66,133.62,0.04901701]
[1743139004915,0.05282011,133.66,133.62,0.04901701]
[1743139005112,7.4846,133.65,133.62,0.04901701]
[1743139006511,0.05282011,133.66,133.62,0.04901701]
[1743139006715,0.05282011,133.66,133.64,7.4848]
[1743139007118,0.05282011,133.66,133.62,0.04901701]
[1743139007912,0.05282011,133.66,133.63,7.4852]
[1743139009316,0.05282011,133.66,133.62,7.53471701]
[1743139009621,0.05282011,133.66,133.62,0.04901701]
[1743139009827,0.05282011,133.66,133.63,7.4849]
[1743139010025,0.05282011,133.66,133.62,0.04901701]
[1743139010626,0.05282011,133.66,133.63,7.4851]
[1743139010822,0.05282011,133.66,133.62,0.04901701]
[1743139011322,0.05282011,133.66,133.63,7.4853]
[1743139011917,0.05282011,133.66,133.62,0.04901701]
[1743139012826,0.05282011,133.66,133.64,7.4848]
[1743139013823,0.05282011,133.66,133.63,7.4851]
[1743139014023,0.05282011,133.66,133.62,0.04901701]
[1743139015226,0.05282011,133.66,133.63,7.4853]
[1743139015725,0.05282011,133.66,133.62,0.04901701]
[1743139016325,0.05282011,133.66,133.63,7.4849]
[1743139016724,0.05282011,133.66,133.62,0.04901701]
[1743139017221,0.05282011,133.66,133.64,7.4847]
[1743139018627,443.47639602,133.79,133.62,14.87116854]
[1743139018829,14.82215153,133.75,133.64,14.82215153]
[1743139019125,59.46105153,133.75,133.69,7.4817]
[1743139019320,51.98215153,133.75,133.65,41.3794]
[1743139019730,11.618,133.74,133.65,41.3794]
[1743139020036,0.05133938,133.71,133.68,0.05128636]
[1743139020814,52.03349091,133.71,133.68,0.05128636]
[1743139021114,22.30415153,133.69,133.68,0.05128636]
[1743139024928,52.03349091,133.71,133.68,0.05128636]
[1743139025737,7.482,133.69,133.68,0.05128636]
[1743139026226,7.4818,133.7,133.68,0.05128636]
[1743139026433,52.03349091,133.71,133.68,0.05128636]
[1743139026929,59.51459091,133.71,133.68,0.05128636]
[1743139027134,52.03349091,133.71,133.68,0.05128636]
[1743139027429,7.482,133.69,133.68,0.05128636]
[1743139027629,52.03349091,133.71,133.68,0.05128636]
[1743139027830,59.51489091,133.71,133.68,0.05128636]
[1743139028330,0.05133938,133.71,133.68,7.53368636]
[1743139028525,0.05133938,133.71,133.68,0.05128636]
[1743139028932,0.05133938,133.71,133.68,7.53358636]
[1743139029127,0.05133938,133.71,133.68,0.05128636]
[1743139029535,7.482,133.69,133.68,0.05128636]
[1743139030835,7.4816,133.7,133.68,0.05128636]
[1743139031335,0.05133938,133.71,133.68,0.05128636]
[1743139031736,7.482,133.69,133.68,0.05128636]
[1743139031937,44.582,133.69,133.68,0.05128636]
[1743139038444,37.13133938,133.71,133.68,0.05128636]
[1743139038830,0.05133938,133.71,133.68,0.05128636]
[1743139039925,0.05133938,133.71,133.68,7.53338636]
[1743139040133,0.05133938,133.71,133.68,0.05128636]
[1743139041340,7.53253938,133.71,133.68,0.05128636]
[1743139041534,0.05133938,133.71,133.68,0.05128636]
[1743139041938,7.4819,133.7,133.68,0.05128636]
[1743139042637,7.53243938,133.71,133.68,0.05128636]
[1743139042835,0.05133938,133.71,133.68,0.05128636]
[1743139043837,7.53263938,133.71,133.68,0.05128636]
[1743139044739,0.05133938,133.71,133.68,0.05128636]
[1743139045339,0.05133938,133.71,133.68,7.53368636]
[1743139045537,0.05133938,133.71,133.68,0.05128636]
[1743139046443,0.05133938,133.71,133.68,7.53368636]
[1743139047537,0.05133938,133.71,133.69,7.482]
[1743139048041,0.05133938,133.71,133.68,0.05128636]
[1743139048245,37.02,133.76,133.68,14.87343789]
[1743139048440,37.02,133.76,133.68,14.82215153]
[1743139048837,7.4792,133.75,133.7,7.481]
[1743139049145,7.4792,133.75,133.68,14.82215153]
[1743139049341,0.05342107,133.74,133.71,0.05646615]
[1743139049641,39.738198,133.79,133.72,14.82215153]
[1743139049845,39.738198,133.79,133.78,7.477]
[1743139050149,39.738198,133.79,133.75,14.82215153]
[1743139050639,33.308998,133.79,133.77,14.82215153]
[1743139050940,10.02039087,133.81,133.77,22.30215153]
[1743139051146,10.02039087,133.81,133.76,0.04881713]
[1743139051640,7.4776,133.77,133.76,0.04881713]
[1743139052049,51.82215153,133.8,133.76,0.04881713]
[1743139052238,7.4766,133.79,133.76,0.04881713]
[1743139052434,37.0,133.8,133.76,0.04881713]
[1743139052840,7.4766,133.79,133.76,0.04881713]
[1743139053148,37.0,133.8,133.76,0.04881713]
[1743139053336,7.4766,133.79,133.76,0.04881713]
[1743139054248,7.477,133.78,133.76,0.04881713]
[1743139054749,37.0,133.81,133.76,0.04881713]
[1743139055147,36.98,133.82,133.76,0.04881713]
[1743139055938,23.10995153,133.85,133.77,14.82215153]
[1743139056144,60.08995153,133.85,133.77,14.82215153]
[1743139056346,45.2678,133.85,133.8,0.04793165]
[1743139056539,60.08995153,133.85,133.8,0.04793165]
[1743139056743,14.82215153,133.81,133.71,14.82215153]
[1743139056949,14.82215153,133.79,133.69,14.82215153]
[1743139057142,36.98,133.78,133.69,14.82215153]
[1743139057938,36.98,133.78,133.73,7.4795]
[1743139058144,0.05309544,133.75,133.73,7.4795]
[1743139058346,0.05309544,133.75,133.74,7.4792]
[1743139059145,0.05309544,133.75,133.73,7.4796]
[1743139060055,0.05309544,133.75,133.74,7.4792]
[1743139061754,0.05309544,133.75,133.73,7.4796]
[1743139061948,0.05309544,133.75,133.72,0.04931983]
[1743139062555,3.9523,133.79,133.72,0.04931983]
[1743139062853,14.82215153,133.83,133.75,14.82215153]
[1743139063045,44.4144,133.83,133.79,7.4764]
[1743139063243,36.94,133.83,133.75,14.82215153]
[1743139063445,44.4146,133.83,133.78,7.4765]
[1743139063654,36.94,133.83,133.75,14.82215153]
[1743139063848,18.74835153,133.85,133.79,0.05491229]
[1743139064045,14.82215153,133.83,133.79,0.05491229]
[1743139064247,51.76215153,133.83,133.79,0.05491229]
[1743139064750,7.4749,133.82,133.79,0.05491229]
[1743139064947,51.76215153,133.83,133.79,0.05491229]
[1743139065147,36.94,133.83,133.79,0.05491229]
[1743139065948,36.94,133.83,133.79,7.53101229]
[1743139066744,7.4739,133.84,133.8,7.4758]
[1743139066952,44.3939,133.84,133.8,7.4758]
[1743139067146,26.22165153,133.85,133.8,7.4758]
[1743139067350,55.66835153,133.85,133.79,7.53111229]
[1743139067752,7.4738,133.84,133.79,7.53111229]
[1743139067948,3.9262,133.85,133.8,7.4756]
[1743139068150,40.8462,133.85,133.79,0.05491229]
[1743139068349,3.9262,133.85,133.79,14.87706382]
[1743139068651,3.9262,133.85,133.83,7.4738]
[1743139069054,40.8502,133.87,133.83,7.52883913]
[1743139069750,7.472,133.87,133.83,0.05503913]
[1743139069956,36.9,133.88,133.83,0.05503913]
[1743139070556,14.82215153,133.9,133.83,0.05503913]
[1743139070856,36.9,133.89,133.83,7.52913913]
[1743139071654,36.9,133.89,133.83,0.05503913]
[1743139071954,7.4732,133.85,133.83,0.05503913]
[1743139072153,4.1544,133.88,133.83,0.05503913]
[1743139072554,14.82215153,133.87,133.83,0.05503913]
[1743139072953,14.82215153,133.85,133.77,14.82215153]
[1743139073152,36.88,133.85,133.79,14.82215153]
[1743139073358,41.0344,133.88,133.79,14.82215153]
[1743139073657,48.5062,133.88,133.79,14.82215153]
[1743139074157,0.04782969,133.85,133.83,7.4742]
[1743139074356,0.04782969,133.85,133.82,0.0514362]
[1743139074752,4.0387,133.91,133.83,14.82215153]
[1743139074958,4.0387,133.91,133.85,14.82215153]
[1743139075159,4.0387,133.91,133.86,7.4723]
[1743139075358,4.0387,133.91,133.85,14.82215153]
[1743139075753,4.0387,133.91,133.87,7.472]
[1743139075949,0.02174012,133.89,133.87,0.05483698]
[1743139076461,0.02174012,133.89,133.88,7.4714]
[1743139076661,0.02174012,133.89,133.87,0.05483698]
[1743139077961,7.49274012,133.89,133.87,0.05483698]
[1743139078463,0.02174012,133.89,133.87,0.05483698]
[1743139079658,7.4714,133.88,133.87,0.05483698]
[1743139079852,0.02174012,133.89,133.87,0.05483698]
[1743139080157,7.4714,133.88,133.87,0.05483698]
[1743139080365,14.84389165,133.89,133.81,14.82215153]
[1743139080565,14.82215153,133.89,133.79,14.82215153]
[1743139080763,14.82215153,133.87,133.77,639.80215153]
[1743139081067,14.82215153,133.85,133.77,268.98]
[1743139081260,41.1164,133.84,133.77,268.98]
[1743139081565,7.52747347,133.82,133.8,0.05098181]
[1743139081866,7.4753,133.81,133.77,268.98]
[1743139082059,14.82215153,133.81,133.75,31.14036674]
[1743139082266,36.84,133.8,133.75,31.14036674]
[1743139082766,36.84,133.8,133.71,639.80215153]
[1743139082966,36.84,133.8,133.71,283.80215153]
[1743139083166,0.04784918,133.77,133.74,0.05715989]
[1743139084665,0.04784918,133.77,133.76,7.4781]
[1743139087368,0.04784918,133.77,133.74,0.05715989]
[1743139087572,0.04784918,133.77,133.75,14.82215153]
[1743139087870,0.04784918,133.77,133.76,7.4781]
[1743139088070,0.04784918,133.77,133.74,36.87715989]
[1743139088272,0.04784918,133.77,133.74,0.05715989]
[1743139091775,0.04784918,133.77,133.75,14.82215153]
[1743139092268,0.04784918,133.77,133.76,7.4781]
[1743139094175,4.0398,133.82,133.75,14.82215153]
[1743139095174,0.05400957,133.8,133.77,0.05112715]
[1743139095374,0.05400957,133.8,133.77,7.52842715]
[1743139095675,0.05400957,133.8,133.77,0.05112715]
[1743139096074,7.53010957,133.8,133.77,0.05112715]
[1743139096272,0.05400957,133.8,133.77,0.05112715]
[1743139096583,7.4764,133.79,133.77,0.05112715]
[1743139096773,0.05400957,133.8,133.77,0.05112715]
[1743139098280,0.05400957,133.8,133.77,7.52862715]
[1743139098673,0.05400957,133.8,133.77,0.05112715]
[1743139098875,0.05400957,133.8,133.79,7.4764]
[1743139100075,0.05400957,133.8,133.77,0.05112715]
[1743139100680,0.05400957,133.8,133.77,7.52852715]
[1743139101581,0.05400957,133.8,133.77,0.05112715]
[1743139102488,0.05400957,133.8,133.71,320.56215153]
[1743139102681,36.76,133.79,133.71,283.80215153]
[1743139102876,7.4771,133.78,133.73,7.4796]
[1743139103089,51.58215153,133.79,133.71,283.80215153]
[1743139103283,14.82215153,133.77,133.67,129.00349624]
[1743139103496,7.479,133.75,133.7,7.4811]
[1743139103802,0.05377614,133.73,133.71,14.87811277]
[1743139103986,36.76,133.79,133.71,14.87811277]
[1743139104192,36.76,133.79,133.73,14.82215153]
[1743139104697,36.76,133.79,133.76,7.4777]
[1743139105195,51.63299744,133.79,133.7,14.82215153]
[1743139105409,51.58215153,133.79,133.7,14.82215153]
[1743139105696,51.58215153,133.79,133.68,36.76]
[1743139105697,7.4787,133.75,133.68,51.58215153]
[1743139105896,51.58215153,133.79,133.68,51.58215153]
[1743139106296,51.58215153,133.79,133.68,14.82215153]
[1743139106497,0.04937614,133.75,133.72,0.04991034]
[1743139106888,0.04937614,133.75,133.66,14.82215153]
[1743139106889,51.61152767,133.75,133.66,14.82215153]
[1743139107092,3.9846,133.74,133.66,14.82215153]
[1743139107286,3.9846,133.74,133.68,7.4824]
[1743139107287,7.4801,133.73,133.68,7.4824]
[1743139107594,3.9846,133.74,133.66,14.82215153]
[1743139107799,3.9846,133.74,133.65,14.82215153]
[1743139108100,0.05196349,133.71,133.68,0.05173645]
[1743139108990,7.4818,133.7,133.68,0.05173645]
[1743139109390,0.05196349,133.71,133.68,0.05173645]
[1743139109587,7.482,133.69,133.68,0.05173645]
[1743139109889,0.05196349,133.71,133.64,269.1]
[1743139109890,14.87411502,133.71,133.64,269.1]
[1743139110090,7.4824,133.69,133.63,22.30705153]
[1743139110298,7.4824,133.69,133.63,14.82215153]
[1743139110493,36.74,133.71,133.65,14.82215153]
[1743139110888,3.9846,133.74,133.67,14.82215153]
[1743139111195,0.05696624,133.69,133.67,14.87627041]
[1743139111391,3.9846,133.74,133.67,14.87627041]
[1743139111700,3.9846,133.74,133.67,0.05411888]
[1743139111898,7.4809,133.71,133.67,7.53691888]
[1743139112198,7.4809,133.71,133.67,0.05411888]
[1743139112400,0.04996952,133.72,133.67,0.05411888]
[1743139112697,7.4812,133.71,133.67,0.05411888]
[1743139112898,0.04996952,133.72,133.67,0.05411888]
[1743139113103,7.4824,133.69,133.67,0.05411888]
[1743139113494,36.74,133.71,133.67,0.05411888]
[1743139113694,7.53056952,133.72,133.67,0.05411888]
[1743139113898,0.04996952,133.72,133.67,0.05411888]
[1743139114896,0.04996952,133.72,133.68,14.82215153]
[1743139115101,0.04996952,133.72,133.67,0.05411888]
[1743139115301,0.04996952,133.72,133.67,7.53691888]
[1743139115502,0.04996952,133.72,133.67,0.05411888]
[1743139116202,0.04996952,133.72,133.68,14.82215153]
[1743139116400,0.04996952,133.72,133.7,7.4813]
[1743139116601,0.04996952,133.72,133.68,14.82215153]
[1743139117102,0.04996952,133.72,133.71,7.4809]
[1743139119197,0.04996952,133.72,133.7,0.05716]
[1743139120606,7.53066952,133.72,133.7,0.05716]
[1743139120794,0.04996952,133.72,133.7,0.05716]